bitfinex/quotes_ETHUSD_20240825
["timestamp","ask_amount","ask_price","bid_price","bid_amount"]
[1724553530303,2.3584,2769.2,2768.8,1.88358895]
[1724553530304,3.6113,2769.1,2768.8,1.88358895]
[1724553530601,3.6113,2769.1,2768.6,0.75062836]
[1724553530747,3.6113,2769.1,2768.7,3.13942313]
[1724553530942,3.6113,2769.1,2768.8,1.25576925]
[1724553531291,3.6113,2769.1,2768.7,1.88366545]
[1724553531491,3.6113,2769.1,2768.8,1.25577691]
[1724553531805,3.6113,2769.1,2768.7,1.88365314]
[1724553532088,3.6113,2769.1,2768.8,1.25576889]
[1724553532286,3.6113,2769.1,2768.7,1.88365366]
[1724553532584,3.6113,2769.1,2768.8,1.25576923]
[1724553532792,3.6113,2769.1,2768.7,1.88365372]
[1724553532989,3.6113,2769.1,2768.8,1.25577666]
[1724553533158,3.6113,2769.1,2768.7,1.88366525]
[1724553533372,3.6113,2769.1,2768.8,1.25576885]
[1724553533565,3.6113,2769.1,2768.7,1.8836407]
[1724553533763,3.6113,2769.1,2768.8,1.2557607]
[1724553534001,3.6113,2769.1,2768.6,6.60591407]
[1724553534002,3.6113,2769.1,2768.7,1.88363945]
[1724553534313,3.6113,2769.1,2768.8,1.25576478]
[1724553534469,3.6113,2769.1,2768.7,1.88363281]
[1724553534803,3.6113,2769.1,2768.8,1.2557531]
[1724553534951,3.6113,2769.1,2768.7,2.22143244]
[1724553535151,2.3584,2769.2,2768.8,1.2557532]
[1724553535369,2.3584,2769.2,2768.7,3.94957264]
[1724553535567,2.3584,2769.2,2768.8,1.25575302]
[1724553535902,5.96956,2769.2,2768.7,3.94957264]
[1724553536104,5.96956,2769.2,2768.8,1.25575126]
[1724553536252,5.96956,2769.2,2768.7,3.94957264]
[1724553536453,5.96956,2769.2,2768.8,1.25575944]
[1724553536666,5.96956,2769.2,2768.7,3.94957264]
[1724553536854,5.96956,2769.2,2768.8,3.13937583]
[1724553537049,5.96956,2769.2,2768.8,1.8836255]
[1724553539196,5.96956,2769.2,2768.8,1.88361654]
[1724553539568,5.96956,2769.2,2768.8,1.88361205]
[1724553540202,5.96956,2769.2,2768.7,7.97416836]
[1724553540360,2.3584,2769.2,2768.8,6.75089903]
[1724553540559,2.3584,2769.2,2768.9,1.25569561]
[1724553540754,2.3584,2769.2,2768.8,3.61166]
[1724553540961,2.3584,2769.2,2768.9,4.8672219]
[1724553541157,2.3913,2769.8,2769.3,3.61094]
[1724553541388,6.00175,2769.8,2769.2,1.88338335]
[1724553541699,4.87696928,2769.9,2769.1,5.49457335]
[1724553541700,2.3913,2769.6,2769.1,5.49457335]
[1724553542501,2.3913,2769.6,2769.1,5.4945236]
[1724553542704,2.3913,2769.6,2769.1,4.72352112]
[1724553543989,2.3913,2769.6,2769.1,8.33471112]
[1724553544391,2.3913,2769.6,2769.1,10.21806218]
[1724553544558,2.3913,2769.6,2769.1,8.33471112]
[1724553544758,2.3913,2769.6,2769.2,3.61114]
[1724553545789,2.3913,2769.6,2769.2,4.70800405]
[1724553555890,2.3913,2769.6,2769.3,3.61101]
[1724553556404,2.3913,2769.6,2769.3,7.22195]
[1724553557895,2.3913,2769.6,2769.3,7.22188]
[1724553558110,2.3913,2769.6,2769.3,3.61094]
[1724553558316,2.3913,2769.6,2769.3,8.3687679]
[1724553558605,2.3913,2769.6,2769.3,4.7578279]
[1724553559639,2.3913,2769.6,2769.3,8.3687479]
[1724553559829,2.3913,2769.6,2769.3,4.7578079]
[1724553560414,2.3913,2769.6,2769.3,8.3687479]
[1724553560613,2.3913,2769.6,2769.3,4.7578079]
[1724553560852,2.3913,2769.6,2769.3,8.3687479]
[1724553561059,2.3913,2769.6,2769.3,4.7578079]
[1724553561289,2.3913,2769.6,2769.3,8.3687379]
[1724553561943,4.87671928,2770.1,2769.5,3.61075]
[1724553561944,2.4427,2769.8,2769.5,3.61075]
[1724553563061,2.4427,2769.8,2769.5,3.60967025]
[1724553568858,2.4427,2770.0,2769.5,3.60967025]
[1724553571068,2.4427,2770.0,2769.5,7.17644953]
[1724553571266,3.60976,2770.3,2769.5,7.17644953]
[1724553571267,2.4427,2770.2,2769.7,3.61041]
[1724553574227,2.4427,2770.2,2769.7,7.22083]
[1724553574428,2.4427,2770.2,2769.7,3.61041]
[1724553574746,2.4427,2770.2,2769.7,7.22082]
[1724553577958,2.4427,2770.2,2769.7,3.61041]
[1724553578181,2.4427,2770.2,2769.8,3.61035]
[1724553578683,3.60976,2770.3,2769.8,3.61035]
[1724553579076,3.58157928,2770.4,2769.8,3.61035]
[1724553579389,2.3149,2770.4,2769.9,3.61014]
[1724553579599,2.3149,2770.4,2770.1,3.60997]
[1724553582363,2.3149,2770.4,2769.9,8.48693928]
[1724553582767,2.3149,2770.4,2770.0,3.61007]
[1724553584048,3.60879,2771.1,2770.3,4.87638928]
[1724553584049,2.3149,2770.9,2770.3,4.87638928]
[1724553584249,2.3149,2770.9,2770.4,3.60951]
[1724553586262,5.92383,2770.9,2770.4,3.60951]
[1724553592062,3.6092,2770.7,2770.1,10.94988]
[1724553592302,2.3149,2770.5,2770.1,10.94988]
[1724553593164,5.92443,2770.5,2770.1,7.34]
[1724553593360,1.26667928,2770.4,2770.1,7.34]
[1724553593580,5.92474,2770.2,2770.1,7.34]
[1724553593785,6.64388193,2770.2,2769.6,3.61054]
[1724553593996,3.58157928,2770.2,2769.5,5.94111]
[1724553594203,3.61006,2770.1,2769.5,5.94111]
[1724553594478,3.61006,2770.1,2769.5,5.94107]
[1724553595429,3.58157928,2770.2,2769.6,3.61053]
[1724553595927,7.19143928,2770.2,2769.6,3.61053]
[1724553596133,8.27156121,2770.2,2769.6,3.61053]
[1724553596433,8.27156121,2770.2,2769.3,7.34]
[1724553596434,3.61026,2769.9,2769.3,10.95092]
[1724553596731,3.61026,2769.9,2769.4,3.61084]
[1724553596935,1.26667928,2770.0,2769.5,3.61073]
[1724553597768,6.09131,2770.1,2769.5,3.61073]
[1724553598284,7.29609712,2770.1,2769.5,3.61073]
[1724553598490,7.29609712,2770.1,2769.5,7.2214]
[1724553601496,3.68608712,2770.1,2769.6,3.61062]
[1724553602766,2.4813,2770.1,2769.7,3.61041]
[1724553602919,6.09106,2770.3,2769.8,3.61036]
[1724553603455,1.26667928,2770.2,2769.7,3.61041]
[1724553607496,2.4813,2770.3,2769.7,3.6104]
[1724553607820,2.4813,2770.3,2769.9,3.61021]
[1724553609397,2.4813,2770.3,2769.9,3.61015]
[1724553612386,1.26667928,2770.4,2769.9,3.61015]
[1724553612869,4.87630928,2770.4,2769.9,3.61015]
[1724553613012,3.60963,2770.4,2769.9,3.61015]
[1724553614928,5.89022,2770.5,2769.9,3.61015]
[1724553615076,8.04592128,2770.5,2769.9,3.61015]
[1724553616176,3.6096,2770.4,2769.9,3.61015]
[1724553618021,3.6096,2770.4,2769.8,2.3652]
[1724553618525,3.6096,2770.4,2769.8,5.97554]
[1724553621229,3.60975,2770.3,2769.8,2.3652]
[1724553624196,8.38511713,2770.3,2769.8,2.3652]
[1724553624903,4.77531713,2770.3,2769.8,2.3652]
[1724553627741,8.38511713,2770.3,2769.8,2.3652]
[1724553628340,4.77531713,2770.3,2769.8,2.3652]
[1724553629284,8.38511713,2770.3,2769.8,2.3652]
[1724553629425,4.77531713,2770.3,2769.8,2.3652]
[1724553629737,3.60975,2770.3,2769.8,2.3652]
[1724553636256,3.60975,2770.3,2769.8,5.97556]
[1724553641656,3.60961,2770.4,2769.8,7.85838992]
[1724553644390,3.60961,2770.4,2769.8,5.97556]
[1724553644686,4.68626193,2770.4,2769.8,7.85839299]
[1724553645240,4.68626193,2770.4,2769.8,7.85839284]
[1724553645486,4.68626193,2770.4,2769.8,5.97556]
[1724553647889,4.68626193,2770.4,2769.9,3.61022]
[1724553648076,1.07665193,2770.4,2769.9,7.22044]
[1724553648278,3.60953,2770.5,2769.9,9.10322996]
[1724553648594,3.60953,2770.5,2769.9,9.10321551]
[1724553648773,3.60953,2770.5,2769.9,5.49299551]
[1724553648994,7.17361928,2770.7,2770.0,2.4021]
[1724553649150,10.78290928,2770.7,2770.2,3.60983]
[1724553649354,10.78290928,2770.7,2770.0,6.0121]
[1724553649686,7.17361928,2770.7,2770.1,3.60995]
[1724553650017,7.17361928,2770.7,2770.0,4.28479078]
[1724553650018,7.24968928,2770.9,2770.2,3.60983]
[1724553650292,3.60901,2770.9,2770.3,2.763083]
[1724553650461,3.60901,2770.9,2770.3,2.4021]
[1724553650664,3.60913,2770.8,2770.3,2.4021]
[1724553652097,8.48470928,2770.9,2770.3,6.01181]
[1724553652300,2.374,2770.8,2770.3,6.01181]
[1724553653461,7.06894093,2770.8,2770.3,6.01181]
[1724553653650,7.06894093,2770.8,2770.3,3.60971]
[1724553665116,1.08587093,2770.8,2770.4,6.01776]
[1724553665410,1.26667928,2770.9,2770.4,6.01776]
[1724553666030,1.26667928,2770.9,2770.5,3.60943]
[1724553666191,1.26667928,2770.9,2770.4,6.01776]
[1724553667130,1.26667928,2770.9,2770.5,3.60945]
[1724553667336,1.99560721,2770.9,2770.5,3.60945]
[1724553668400,1.94560721,2770.9,2770.5,3.60945]
[1724553669088,5.55454721,2770.9,2770.4,6.01777]
[1724553669606,4.82561928,2770.9,2770.4,6.01777]
[1724553673637,4.77561928,2770.9,2770.4,6.01777]
[1724553679720,4.77561928,2770.9,2770.4,3.60957]
[1724553680963,3.60894,2770.9,2770.4,3.60957]
[1724553685159,4.87561928,2770.9,2770.4,3.60957]
[1724553685476,2.2548,2770.7,2770.4,3.60957]
[1724553691457,5.86374,2770.9,2770.4,3.60957]
[1724553704236,3.60894,2770.9,2770.4,3.60957]
[1724553709564,3.60894,2770.9,2770.3,1.88253203]
[1724553709766,3.60894,2770.9,2770.3,3.60969]
[1724553709982,3.6091,2770.8,2770.2,10.22965836]
[1724553710132,3.6091,2770.8,2770.3,3.13758715]
[1724553710471,3.60894,2770.9,2770.4,1.25503]
[1724553710688,8.31147593,2770.9,2770.3,3.6097]
[1724553710891,8.31147593,2770.9,2770.4,1.25502517]
[1724553711193,8.31147593,2770.9,2770.3,3.6097]
[1724553711391,4.70244593,2770.9,2770.4,1.25502359]
[1724553711546,4.70244593,2770.9,2770.3,3.6097]
[1724553711749,4.70244593,2770.9,2770.4,1.25502426]
[1724553711949,8.31150593,2770.9,2770.3,3.6097]
[1724553712248,4.70244593,2770.9,2770.4,1.2550239]
[1724553712451,4.70244593,2770.9,2770.3,3.6097]
[1724553712701,4.70244593,2770.9,2770.4,1.25502283]
[1724553712984,4.70244593,2770.9,2770.3,3.6097]
[1724553713759,4.70244593,2770.9,2770.4,1.2550179]
[1724553714010,4.70244593,2770.9,2770.3,3.6097]
[1724553714308,4.70244593,2770.9,2770.4,1.25502401]
[1724553714458,4.70244593,2770.9,2770.3,3.6097]
[1724553714903,4.70244593,2770.9,2770.4,1.25502385]
[1724553715207,4.70244593,2770.9,2770.3,3.6097]
[1724553715399,8.31147593,2770.9,2770.4,1.25502261]
[1724553715700,8.31147593,2770.9,2770.3,3.6097]
[1724553715907,4.70244593,2770.9,2770.4,1.25502267]
[1724553716062,4.70244593,2770.9,2770.3,3.6097]
[1724553716263,4.70244593,2770.9,2770.4,1.25502249]
[1724553716521,4.70244593,2770.9,2770.3,3.6097]
[1724553716677,4.70244593,2770.9,2770.4,1.25502267]
[1724553716882,4.70244593,2770.9,2770.3,3.6097]
[1724553717108,4.70244593,2770.9,2770.4,1.25502249]
[1724553717309,8.31146593,2770.9,2770.3,3.6097]
[1724553717606,4.70244593,2770.9,2770.4,1.25502349]
[1724553717800,4.70244593,2770.9,2770.3,3.6097]
[1724553718010,4.70244593,2770.9,2770.4,1.25502337]
[1724553718253,4.70244593,2770.9,2770.3,3.6097]
[1724553718553,4.70244593,2770.9,2770.4,1.2550187]
[1724553718703,4.70244593,2770.9,2770.3,3.6097]
[1724553718904,4.70244593,2770.9,2770.4,1.25502321]
[1724553719151,4.70244593,2770.9,2770.3,3.6097]
[1724553719334,4.70244593,2770.9,2770.4,1.25501875]
[1724553719545,4.70244593,2770.9,2770.3,3.6097]
[1724553719745,4.70244593,2770.9,2770.4,1.25502244]
[1724553720048,4.70244593,2770.9,2770.3,3.6097]
[1724553720258,4.70244593,2770.9,2770.4,1.25501752]
[1724553720455,4.70244593,2770.9,2770.3,3.6097]
[1724553720628,4.70244593,2770.9,2770.4,1.25502222]
[1724553720826,4.70244593,2770.9,2770.3,3.6097]
[1724553721152,4.70244593,2770.9,2770.4,1.25502244]
[1724553721351,4.70244593,2770.9,2770.3,3.6097]
[1724553721558,4.70244593,2770.9,2770.4,1.25502227]
[1724553721712,4.70244593,2770.9,2770.3,3.6097]
[1724553721913,8.31146593,2770.9,2770.4,1.25502243]
[1724553722150,8.31147593,2770.9,2770.3,3.6097]
[1724553722458,4.70244593,2770.9,2770.4,1.25502243]
[1724553722664,4.70244593,2770.9,2770.3,3.6097]
[1724553722814,4.70244593,2770.9,2770.4,1.25502234]
[1724553723011,4.70244593,2770.9,2770.3,3.6097]
[1724553723251,4.70244593,2770.9,2770.4,1.25502216]
[1724553723456,4.70244593,2770.9,2770.3,3.6097]
[1724553723457,8.31145593,2770.9,2770.3,3.6097]
[1724553723614,8.31146593,2770.9,2770.4,1.25502234]
[1724553723816,8.31146593,2770.9,2770.3,3.6097]
[1724553724015,4.70244593,2770.9,2770.3,3.6097]
[1724553724748,4.70244593,2770.9,2770.4,1.25502233]
[1724553725072,4.70244593,2770.9,2770.3,3.6097]
[1724553726158,4.70244593,2770.9,2770.4,1.25502222]
[1724553726371,4.70244593,2770.9,2770.3,3.6097]
[1724553726658,3.60894,2770.9,2770.3,4.87637928]
[1724553726859,3.60894,2770.9,2770.4,1.88252182]
[1724553727043,3.60894,2770.9,2770.3,5.62700764]
[1724553727261,3.60894,2770.9,2770.4,6.74700123]
[1724553727419,3.60894,2770.9,2770.4,3.60951]
[1724553727976,0.1314116,2771.4,2770.9,3.60893]
[1724553728119,0.1314116,2771.4,2771.1,3.60862]
[1724553728865,0.1314116,2771.4,2771.0,1.26667928]
[1724553729975,0.1314116,2771.4,2771.0,4.87544928]
[1724553730330,0.1314116,2771.4,2771.0,2.30331281]
[1724553731582,0.1314116,2771.4,2771.0,1.26667928]
[1724553733579,0.1314116,2771.4,2771.0,4.87546928]
[1724553733778,0.1314116,2771.4,2771.0,1.26667928]
[1724553737272,0.1314116,2771.4,2771.2,1.26667928]
[1724553739450,0.1314116,2771.4,2770.9,3.60883]
[1724553739666,2.2569,2771.3,2770.9,3.60883]
[1724553740492,2.2569,2771.3,2770.9,4.45729393]
[1724553741057,2.2569,2770.9,2770.4,0.75062836]
[1724553741288,3.60915,2770.8,2770.0,2.62719927]
[1724553741489,5.86625,2770.6,2769.9,1.83241879]
[1724553741683,2.2569,2770.6,2770.1,3.60996]
[1724553741855,2.2569,2770.6,2770.0,4.03097188]
[1724553742048,2.2569,2770.6,2770.0,4.03089188]
[1724553742309,1.26667928,2770.5,2769.9,0.56573951]
[1724553742468,3.60985,2770.2,2769.9,0.56573951]
[1724553744122,3.60985,2770.2,2769.6,3.61062]
[1724553744276,3.60985,2770.2,2769.6,4.17654789]
[1724553744476,3.60985,2770.2,2769.7,3.61049]
[1724553744673,9.4763,2770.4,2769.7,3.61049]
[1724553745112,5.8666,2770.4,2769.7,3.61049]
[1724553745623,3.60971,2770.3,2769.7,3.61049]
[1724553747882,3.60971,2770.3,2769.7,4.87716928]
[1724553750565,3.60993,2770.2,2769.6,0.56592789]
[1724553751360,3.60999,2770.1,2769.6,0.56592789]
[1724553751524,3.61015,2770.0,2769.6,0.56592789]
[1724553751724,5.88805,2770.0,2769.6,0.56592789]
[1724553753976,2.2779,2770.0,2769.6,0.56592789]
[1724553755587,3.60993,2770.2,2769.6,5.44312717]
[1724553755748,3.60993,2770.2,2769.7,0.90537772]
[1724553755952,3.60993,2770.2,2769.7,3.61049]
[1724553756716,2.4659,2770.3,2769.7,7.22091]
[1724553757054,6.07566,2770.3,2769.7,3.61042]
[1724553757786,2.4659,2770.3,2769.7,3.61044]
[1724553758005,2.4659,2770.3,2769.9,3.61016]
[1724553758694,2.4659,2770.3,2769.7,6.03034]
[1724553758695,6.07562,2770.3,2769.7,6.03029]
[1724553758893,2.4659,2770.3,2769.7,6.03029]
[1724553759102,2.4659,2770.3,2769.8,3.61029]
[1724553759248,3.60963,2770.4,2769.8,3.61029]
[1724553760187,3.60963,2770.4,2769.7,6.75998693]
[1724553760390,3.60972,2770.3,2769.7,6.75998693]
[1724553760983,3.60972,2770.3,2769.7,10.37039693]
[1724553761201,3.60972,2770.3,2769.7,6.75998693]
[1724553763897,3.61014,2770.0,2769.3,7.34]
[1724553764101,3.61023,2769.9,2769.4,3.61087]
[1724553764897,3.61014,2770.0,2769.4,3.61087]
[1724553765051,7.22036,2770.0,2769.4,4.70172793]
[1724553765256,3.61014,2770.0,2769.4,4.70172793]
[1724553766893,6.07581,2770.2,2769.4,5.96834721]
[1724553767096,2.4659,2770.2,2769.6,3.61053]
[1724553767296,3.60968,2770.4,2769.2,4.87770928]
[1724553767297,2.4659,2769.8,2769.2,4.87770928]
[1724553767664,6.07627,2769.8,2769.2,8.48876928]
[1724553767981,2.4659,2769.8,2769.3,3.611]
[1724553768902,2.4659,2769.8,2769.4,3.61086]
[1724553771997,2.4659,2770.1,2769.4,4.87753928]
[1724553772301,2.4659,2770.1,2769.6,3.61059]
[1724553772508,3.60962,2770.4,2769.8,3.61036]
[1724553772806,3.0,2770.3,2769.8,3.61028]
[1724553773407,6.60972,2770.3,2769.8,3.61028]
[1724553775357,6.60972,2770.3,2769.6,8.48777928]
[1724553775657,6.60972,2770.3,2769.7,0.89755332]
[1724553776502,3.60985,2770.2,2769.7,0.89755332]
[1724553776719,3.60985,2770.2,2769.6,3.61053]
[1724553777710,3.0,2770.3,2769.8,3.61029]
[1724553778870,3.60972,2770.3,2769.8,3.61029]
[1724553781716,2.4659,2770.4,2769.9,3.61018]
[1724553782009,5.8676,2770.6,2770.0,8.48679928]
[1724553782221,5.8676,2770.6,2770.1,0.84867993]
[1724553782386,9.47703,2770.6,2770.1,0.84867993]
[1724553782583,5.8676,2770.6,2770.1,0.84867993]
[1724553782885,5.8676,2770.6,2770.1,4.45863993]
[1724553783217,5.8676,2770.6,2770.2,0.93353392]
[1724553785861,3.6094,2770.6,2770.2,0.93353392]
[1724553791510,3.6094,2770.6,2770.1,5.93406]
[1724553792408,7.21883,2770.6,2770.1,2.3241]
[1724553792786,3.6094,2770.6,2770.1,2.3241]
[1724553794644,3.6094,2770.6,2770.1,5.93405]
[1724553794840,5.86734,2770.8,2770.1,5.93398]
[1724553794841,3.60922,2770.7,2770.1,5.93398]
[1724553795049,3.60922,2770.7,2770.2,0.72006593]
[1724553796149,3.60922,2770.7,2770.2,1.98674521]
[1724553796735,3.60922,2770.7,2770.2,5.59653521]
[1724553797829,3.60897,2770.9,2770.3,3.60963]
[1724553798039,3.60897,2770.9,2770.4,0.55963752]
[1724553799933,3.60897,2770.9,2770.4,4.16919752]
[1724553800248,3.60897,2770.9,2770.4,6.58619752]
[1724553800976,3.60874,2771.1,2770.5,3.60945]
[1724553801171,1.26667928,2771.2,2770.6,4.87592928]
[1724553801172,5.86347,2771.2,2770.6,4.87592928]
[1724553801322,5.86347,2771.2,2770.6,6.02213096]
[1724553801522,3.60847,2771.3,2770.7,6.02618]
[1724553802273,3.60847,2771.3,2770.7,6.02612]
[1724553804578,3.60847,2771.3,2770.7,9.63523]
[1724553804877,3.60847,2771.3,2770.8,1.2048111]
[1724553807045,3.6087,2771.1,2770.8,1.2048111]
[1724553807249,5.8636,2771.1,2770.5,10.94937]
[1724553808373,9.47238,2771.1,2770.5,10.94937]
[1724553808611,5.8636,2771.1,2770.5,10.94937]
[1724553808902,3.60882,2771.0,2770.6,1.39260075]
[1724553810201,3.60895,2770.9,2770.6,1.39260075]
[1724553810792,3.60908,2770.8,2770.5,7.34]
[1724553810993,5.86409,2770.7,2770.5,7.34]
[1724553811312,5.86409,2770.7,2770.1,3.60989]
[1724553812100,5.86409,2770.7,2770.2,3.60976]
[1724553812304,5.86409,2770.7,2770.3,0.721965]
[1724553813209,2.2549,2770.7,2770.3,4.331665]
[1724553813616,7.13031928,2771.1,2770.4,2.417]
[1724553813820,3.60889,2771.0,2770.4,6.7013665]
[1724553814872,7.13031928,2771.1,2770.4,6.7013665]
[1724553814873,3.60894,2770.9,2770.4,3.0918665]
[1724553815415,3.60968,2770.4,2770.0,7.34]
[1724553815619,3.61447928,2770.5,2769.8,3.61028]
[1724553817243,3.60972,2770.3,2769.8,3.61028]
[1724553817742,5.95706,2770.7,2770.1,5.95785]
[1724553818038,3.60936,2770.6,2770.1,5.95785]
[1724553818598,3.60947,2770.5,2769.9,5.95802]
[1724553823002,3.60947,2770.5,2770.0,3.61007]
[1724553824503,2.3478,2770.4,2769.8,7.22058]
[1724553824704,2.3478,2770.4,2769.9,1.272058]
[1724553824919,2.3478,2770.4,2769.9,4.882278]
[1724553827932,3.60947,2770.5,2769.9,6.14895728]
[1724553828133,3.60947,2770.5,2770.0,2.3479]
[1724553828441,5.95687,2770.8,2770.3,3.60971]
[1724553828637,5.95687,2770.8,2770.4,0.360971]
[1724553828840,9.56604,2770.8,2770.4,0.360971]
[1724553829087,9.56604,2770.8,2770.1,8.48661928]
[1724553829379,5.95687,2770.8,2770.2,4.15982]
[1724553829939,9.56604,2770.8,2770.2,0.55]
[1724553830334,3.60923,2770.7,2770.2,0.55]
[1724553832184,5.95748,2770.4,2769.8,7.22490928]
[1724553832486,5.95748,2770.4,2769.9,0.79755376]
[1724553833668,5.95748,2770.4,2769.9,4.40778376]
[1724553835361,2.3478,2770.4,2769.9,4.40778376]
[1724553835770,3.60943,2770.6,2770.0,3.61007]
[1724553835971,6.07503,2770.6,2770.0,4.7732673]
[1724553838502,6.07503,2770.6,2770.0,8.3832773]
[1724553838805,6.07503,2770.6,2770.0,4.7732573]
[1724553838957,6.07503,2770.6,2770.0,8.3832873]
[1724553839888,6.07503,2770.6,2770.1,3.60989]
[1724553843194,6.07466,2770.8,2770.2,2.2771]
[1724553844102,6.07466,2770.8,2770.3,3.6097]
[1724553845185,9.68382,2770.8,2770.3,3.6097]
[1724553845514,9.68382,2770.8,2770.2,3.60984]
[1724553845800,10.77886993,2770.8,2770.2,3.60984]
[1724553847575,7.16970993,2770.8,2770.2,3.60984]
[1724553847915,6.07466,2770.8,2770.2,3.60984]
[1724553848394,9.68381,2770.8,2770.2,3.60984]
[1724553850428,3.6092,2770.7,2770.2,3.60984]
[1724553852810,3.6092,2770.7,2770.0,14.49384928]
[1724553852811,4.87609928,2770.6,2770.0,13.22717]
[1724553853303,3.60942,2770.6,2770.0,13.22717]
[1724553853487,2.4656,2770.5,2770.0,10.95007]
[1724553854087,2.4656,2770.5,2770.1,1.2551091]
[1724553854711,2.4656,2770.5,2770.0,10.95007]
[1724553854917,2.4656,2770.5,2770.1,1.25511138]
[1724553855092,2.4656,2770.5,2770.1,1.88263832]
[1724553856837,2.4656,2770.5,2770.2,1.2550887]
[1724553857139,2.4656,2770.5,2770.1,1.88263832]
[1724553860094,2.4656,2770.5,2770.2,1.25509139]
[1724553860294,2.4656,2770.5,2770.1,1.88263832]
[1724553860695,2.4656,2770.5,2770.2,1.25509145]
[1724553861139,2.4656,2770.5,2770.1,5.49260832]
[1724553861436,2.4656,2770.5,2770.2,1.25508607]
[1724553861634,2.4656,2770.5,2770.1,5.49260832]
[1724553861839,2.4656,2770.5,2770.2,1.25509131]
[1724553861995,2.4656,2770.5,2770.1,5.49260832]
[1724553862197,2.4656,2770.5,2770.2,1.25509031]
[1724553862432,2.4656,2770.5,2770.1,3.60997]
[1724553862642,2.4656,2770.5,2770.2,1.25508591]
[1724553862847,2.4656,2770.5,2770.2,1.88262687]
[1724553863338,2.4656,2770.5,2770.3,1.25505966]
[1724553863543,2.4656,2770.5,2770.2,5.49245687]
[1724553863753,2.4656,2770.5,2770.3,1.25506806]
[1724553863946,2.4656,2770.5,2770.2,5.49245687]
[1724553864296,2.4656,2770.5,2770.3,1.25505027]
[1724553864504,2.4656,2770.5,2770.2,3.60983]
[1724553864505,2.4656,2770.5,2770.2,5.49242279]
[1724553864799,2.4656,2770.5,2770.3,1.25505665]
[1724553865027,2.4656,2770.5,2770.2,5.49244883]
[1724553865218,2.4656,2770.5,2770.3,1.25505502]
[1724553865418,2.4656,2770.5,2770.2,3.60983]
[1724553865731,2.4656,2770.5,2770.3,1.25504677]
[1724553865937,2.4656,2770.5,2770.2,9.10214099]
[1724553866249,2.376,2770.7,2770.3,5.976698]
[1724553866415,2.376,2770.7,2770.3,3.6097]
[1724553868150,2.376,2770.7,2770.3,5.49224886]
[1724553870728,2.376,2770.7,2770.3,3.6097]
[1724553870926,2.376,2770.7,2770.3,5.49224886]
[1724553872032,2.376,2770.7,2770.3,3.6097]
[1724553872368,2.376,2770.7,2770.3,5.49229683]
[1724553873163,2.376,2770.7,2770.3,3.6097]
[1724553873373,2.376,2770.7,2770.4,1.25502089]
[1724553873568,2.376,2770.7,2770.3,3.6097]
[1724553873796,2.376,2770.7,2770.4,1.25502242]
[1724553873978,2.376,2770.7,2770.3,3.6097]
[1724553874133,2.376,2770.7,2770.4,1.25502196]
[1724553874338,2.376,2770.7,2770.3,3.6097]
[1724553874576,2.376,2770.7,2770.4,1.25502172]
[1724553874739,2.376,2770.7,2770.3,3.6097]
[1724553874945,2.376,2770.7,2770.4,1.25502161]
[1724553875278,2.376,2770.7,2770.3,5.49223257]
[1724553876242,2.376,2770.7,2770.3,6.75891185]
[1724553876468,2.376,2770.7,2770.4,1.25502021]
[1724553876695,2.376,2770.7,2770.3,6.25716626]
[1724553877006,2.376,2770.7,2770.3,6.25710626]
[1724553877214,2.3325,2770.9,2770.4,3.68753532]
[1724553877366,2.3325,2770.9,2770.4,6.04201817]
[1724553877570,2.3325,2770.9,2770.5,1.25495343]
[1724553877798,2.3325,2770.9,2770.4,5.53193438]
[1724553878001,2.3325,2770.9,2770.5,1.25493312]
[1724553878314,2.3325,2770.9,2770.4,5.53193438]
[1724553878611,2.3325,2770.9,2770.4,7.41437758]
[1724553879111,5.94144,2770.9,2770.4,7.41437758]
[1724553881286,5.94144,2770.9,2770.5,1.25494758]
[1724553881701,5.94144,2770.9,2770.4,7.41435564]
[1724553882014,5.94144,2770.9,2770.5,1.2549457]
[1724553883368,5.94144,2770.9,2770.5,1.88242126]
[1724553883569,5.94144,2770.9,2770.4,7.41435564]
[1724553883768,5.94144,2770.9,2770.5,1.25494149]
[1724553884000,5.94144,2770.9,2770.4,7.41435564]
[1724553885013,5.94144,2770.9,2770.4,5.53193438]
[1724553885387,5.94144,2770.9,2770.4,7.41435564]
[1724553885724,5.94144,2770.9,2770.4,5.53193438]
[1724553886008,5.94144,2770.9,2770.4,7.41435564]
[1724553886600,5.94144,2770.9,2770.4,5.53193438]
[1724553886800,5.94144,2770.9,2770.4,7.41437447]
[1724553886974,5.94144,2770.9,2770.5,2.20984749]
[1724553887485,5.94144,2770.9,2770.5,1.26667928]
[1724553900613,2.3325,2770.9,2770.5,4.87612928]
[1724553900915,3.60872,2771.1,2770.7,1.26667928]
[1724553901117,2.3578,2771.0,2770.6,4.15925]
[1724553901845,2.3578,2771.0,2770.5,3.14905272]
[1724553901846,0.596652,2771.0,2770.5,1.88237344]
[1724553901985,3.60916,2770.8,2770.3,9.22237344]
[1724553902186,2.3578,2770.4,2770.3,7.34]
[1724553902531,2.3578,2770.4,2770.0,3.14905272]
[1724553903254,2.3578,2770.3,2770.0,1.26667928]
[1724553905760,2.3578,2770.3,2770.0,3.14939744]
[1724553905938,2.3578,2770.3,2770.0,1.26667928]
[1724553906568,2.3578,2770.3,2770.1,1.25512981]
[1724553907771,2.3578,2770.3,2770.0,4.87669928]
[1724553907972,2.3578,2770.3,2770.0,1.26667928]
[1724553908402,2.3578,2770.3,2769.9,5.49285816]
[1724553908562,2.3578,2770.2,2770.0,1.25513366]
[1724553908756,2.3578,2770.2,2769.8,1.88275333]
[1724553909016,2.3578,2770.2,2769.7,7.84759368]
[1724553909326,2.3578,2770.2,2769.8,1.25522336]
[1724553910581,2.3578,2770.2,2769.8,4.86553336]
[1724553910773,2.3578,2770.2,2769.8,3.61031]
[1724553913088,2.3578,2770.2,2769.9,3.61022]
[1724553914799,2.3578,2770.2,2769.9,7.22035]
[1724553915002,2.3578,2770.2,2769.9,8.48694928]
[1724553915297,2.3578,2770.2,2769.9,4.87680928]